Cogmind - Beta 13 @@@ ROGUE MODE // 2024.04.25 @ 05:17:50 Player: Khoroshiy Result: Destroyed by Y-45 Defender with Heavy Assault Rifle Performance ------------- Evolutions (2) 1000 Regions Visited (4) 800 Robots Destroyed (22) 110 Value Destroyed (760) 760 Prototype IDs (8) 160 Alien Tech Used (0) 0 Bonus (22) 22 TOTAL SCORE: 2852 Bonus ------- High Alert Combat Kills 22 Cogmind --------- Core Integrity 0/550 Matter 70/300 Energy 88/100 System Corruption 2% Temperature Cool (9) Movement Core (100) Ox1 Location -8/Storage Parts ------- > --- POWER (1) -------- (None) > --- PROPULSION (4) --- (None) > --- UTILITY (4) ------ (None) > --- WEAPON (2) ------- Mini Assault Cannon > --- INVENTORY (5) ---- Cooled Ion Engine Insulated Plating Drone Bay (2/2) Drone Bay (2/2) EM Pulse Cannon Peak State ------------ > --- POWER ------------ Light Deuterium Engine > --- PROPULSION ------- Aluminum Leg Carbon-fiber Leg > --- UTILITY ---------- Small Storage Unit Advanced Weight Redist. System > --- WEAPON ----------- EM Pulse Cannon Assault Cannon > --- INVENTORY -------- Airjet Insulated Plating Shock Rifle EM Pulse Cannon [Rating: 18] Favorites ----------- Power Ion Engine Engine Ion Engine Power Core Light Nuclear Core Propulsion Aluminum Leg Leg Aluminum Leg Hover Unit Airjet Flight Unit Flight Unit Utility Small Storage Unit Device Advanced Weight Redist. System Storage Small Storage Unit Weapon Medium Laser Energy Gun Medium Laser Energy Cannon EM Pulse Cannon Ballistic Gun Assault Rifle Ballistic Cannon Light Cannon Launcher Rocket Launcher Build | -11 -10 -9 -8 -8 ------- Run | Yrd Mat Mat Mat Sto Slots Evolved 4 | . . 2 2 . Power . | . . . . . Propulsion 2 | . . 2 . . Utility 2 | . . . 2 . Weapon . | . . . . . Parts Attached 38 | 6 3 8 7 14 Power 7 | 1 1 1 1 3 Engine 5 | 1 1 1 1 1 Core 2 | . . . . 2 Reactor . | . . . . . Propulsion 10 | 2 2 2 3 1 Treads . | . . . . . Leg 7 | 2 1 2 2 . Wheel . | . . . . . Hover 1 | . . . . 1 Flight 2 | . 1 . 1 . Utility 3 | 1 . 1 . 1 Device 2 | . . 1 . 1 Storage 1 | 1 . . . . Processor . | . . . . . Hackware . | . . . . . Protection . | . . . . . Artifact . | . . . . . Weapon 18 | 2 . 4 3 9 Energy Gun 6 | 1 . 1 . 4 Energy Cannon 2 | . . . 1 1 Ballistic Gun 2 | 1 . . . 1 Ballistic Cannon 5 | . . 1 2 2 Launcher 3 | . . 2 . 1 Special Weapon . | . . . . . Impact Weapon . | . . . . . Slashing Weapon . | . . . . . Piercing Weapon . | . . . . . Special Melee Weapon . | . . . . . Unidentified Prototypes 6 | . . . . 6 Parts Lost 22 | . 3 4 11 4 Power 5 | . 1 1 2 1 Propulsion 8 | . . 2 5 1 Utility 1 | . . . 1 . Weapon 8 | . 2 1 3 2 Highest Loss Streak 5 | . 2 4 5 2 To Critical Strikes . | . . . . . Average Slot Usage (%) 61 | . 77 79 57 24 Engine 8 | . 11 10 8 . Core 1 | . . . . 6 Leg 15 | . 24 27 9 . Hover 1 | . . . . 8 Flight 1 | . . . 4 . Device 4 | . . 8 9 . Storage 9 | . 14 11 9 . Energy Gun 6 | . 13 6 . 6 Energy Cannon 2 | . . . 7 . Ballistic Gun 3 | . 12 . . . Ballistic Cannon 4 | . . 7 7 1 Launcher 2 | . . 8 1 1 Naked Turns 3 | . . . . 3 Heaviest Build 21 | 12 14 18 21 11 Greatest Support 49 | 20 20 49 25 8 Greatest Overweight (x) 4 | 3 2 . 4 3 Average Overweight (x) . | . . . . . Largest Inventory Capacity 8 | 8 8 8 8 8 Average Capacity 7 | 7 8 8 8 5 Most Carried 7 | 2 4 7 6 5 Average Carried 3 | 1 3 5 3 4 Final Capacity 8 | 8 8 8 8 5 Final Carried 6 | 2 4 5 6 5 Class Distribution -------------------- 96% | Mutant 3% | Scavenger-Mutant Dominant Class ---------------- Mutant | -10/Materials Mutant | -9/Materials Mutant | -8/Materials Mutant | -8/Storage Resources | -11 -10 -9 -8 -8 ----------- Run | Yrd Mat Mat Mat Sto Matter Collected 681 | 192 127 73 252 37 Remotely . | . . . . . Salvage Created 658 | . 148 201 201 108 Parts 42 | . 8 12 8 14 Haulers Intercepted . | . . . . . Recyclers Shooed 2 | . 1 1 . . Parts Field Recycled . | . . . . . Retrieved Matter . | . . . . . Parts Self-Destructed . | . . . . . Prevented . | . . . . . Kills | -11 -10 -9 -8 -8 ------- Run | Yrd Mat Mat Mat Sto Combat Hostiles Destroyed 20 | . 5 8 5 2 Guns 5 | . 5 . . . Cannons 8 | . . 2 5 1 AOE 7 | . . 6 . 1 Classes Destroyed 6 | . 2 2 1 1 Worker 1 | . . . . 1 Operator 1 | . . . 1 . Swarmer 5 | . 3 2 . . Grunt 8 | . 2 4 2 . Duelist 2 | . . 1 1 . Sentry 5 | . . 1 2 2 Best Kill Streak 4 | . 3 4 2 2 Combat Bots Only 4 | . 3 4 2 2 Max Kills in Single Turn 2 | . 1 2 1 2 Gunslinging . | . . . . . Exploded 2 | . . 2 . 1 Melee . | . . . . . Uniques/NPCs Destroyed . | . . . . . Combat | -11 -10 -9 -8 -8 -------- Run | Yrd Mat Mat Mat Sto Hostile Shots Fired 227 | . 77 63 49 38 Missed 67 | . 27 23 6 11 Damage Taken 2569 | . 491 685 943 450 Core 869 | . 127 181 392 169 Absorbed by Shields . | . . . . . Core Remaining (%) 67 | 100 49 54 . . Volleys Fired 56 | . 17 12 23 4 Largest 2 | . 2 2 2 2 Hottest 113 | . 70 75 107 113 Shots Fired 109 | . 34 24 43 8 Gun 40 | . 34 5 . 1 Cannon 45 | . . 5 36 4 Launcher 24 | . . 14 7 3 Special . | . . . . . Kinetic 43 | . 17 5 18 3 Thermal 17 | . 17 . . . Explosive 24 | . . 14 7 3 Electromagnetic 25 | . . 5 18 2 Robot Hit Streak 8 | . 5 4 8 2 Robot Miss Streak 4 | . 3 1 4 . Penetration Max . | . . . . . Secondary Targets 2 | . 2 . . . Max Gunslinging Chain 1 | . 1 . . . Shots Hit Robots 60 | . 18 16 25 1 Core Hits 31 | . 8 10 10 3 Critical Kills . | . . . . . Critical Parts Destroyed . | . . . . . Critical Strikes 3 | . . . 3 . Blast 2 | . . . 2 . Corrupt 1 | . . . 1 . Melee Attacks . | . . . . . Impact . | . . . . . Slashing . | . . . . . Piercing . | . . . . . Sneak Attacks . | . . . . . Combat Hostiles . | . . . . . Follow-up Attacks . | . . . . . Damage Inflicted 1941 | . 235 712 734 260 Guns 258 | . 233 25 . . Cannons 615 | . . 86 476 53 Explosions 1050 | . . 601 258 191 Melee . | . . . . . Ramming 18 | . 2 . . 16 Kinetic 451 | . 109 86 203 53 Thermal 269 | . 124 145 . . Explosive 905 | . . 456 258 191 Electromagnetic 298 | . . 25 273 . Impact . | . . . . . Slashing . | . . . . . Piercing . | . . . . . Highest Corruption 2 | . . . . 2 Average Corruption 2 | . . . . 2 Corruption Purged . | . . . . . Corruption Blocked . | . . . . . Effects 3 | . . . . 3 Heat Flow Errors 1 | . . . . 1 Energy Discharges 1 | . . . . 1 Parts Rejected 1 | . . . . 1 Overload Shots . | . . . . . Overflow Damage 37 | . . 25 12 . Projectiles . | . . . . . Explosions 37 | . . 25 12 . Melee . | . . . . . Knockbacks 7 | . . 3 4 . Impact . | . . . . . Kinetic 6 | . . 2 4 . Secondary 1 | . . 1 . . Self-Inflicted Damage 357 | . . 194 112 51 Shots 9 | . . 5 3 1 Rammed 3 | . 1 . . 2 Targets Rammed 4 | . 2 . . 2 Kicked 1 | . 1 . . . Crushed . | . . . . . Highest Temperature 236 | . 54 27 216 236 Average Temperature 46 | . 22 11 72 57 Received Heat Transfer 804 | . 126 183 288 207 Siege Activations . | . . . . . Robots Corrupted . | . . . . . Combat Hostiles . | . . . . . Parts Fried . | . . . . . Impact Corruptions . | . . . . . Robots Melted . | . . . . . Combat Hostiles . | . . . . . Parts Melted 1 | . 1 . . . Heat Transferred 520 | . 370 150 . . Parts Sabotaged . | . . . . . Parts Stolen . | . . . . . Parts Stripped . | . . . . . Power Chain Reactions 2 | . . 2 . . Alert | -11 -10 -9 -8 -8 ------- Run | Yrd Mat Mat Mat Sto Peak Influence 574 | . 126 323 399 574 Initial 151 | . . 44 135 151 Average 179 | . 61 163 250 310 Maximum Alert Level 2 | . . 1 1 2 Low Security (%) 55 | 100 100 63 12 37 Level 1 38 | . . 36 87 31 Level 2 5 | . . . . 31 Level 3 . | . . . . . Level 4 . | . . . . . Level 5 . | . . . . . High Security . | . . . . . Max Security . | . . . . . Squads Dispatched 4 | . . 1 1 2 Investigation 1 | . . . . 1 Extermination . | . . . . . Reinforcement 3 | . . 1 1 1 Assault . | . . . . . Garrison . | . . . . . Intercept . | . . . . . Searches Triggered . | . . . . . Construction Impeded . | . . . . . Haulers Reinforced . | . . . . . Active Scanning Responses . | . . . . . Cargo Convoy Interrupts . | . . . . . Stealth | -11 -10 -9 -8 -8 --------- Run | Yrd Mat Mat Mat Sto Distress Signals 2 | . . 1 . 1 Communications Jammed . | . . . . . Distress Signals . | . . . . . Times Spotted 54 | . 9 10 12 23 Peak Tracking Total 13 | . 5 8 4 13 Tactical Retreats 5 | . . . 1 4 Traps | -11 -10 -9 -8 -8 ------- Run | Yrd Mat Mat Mat Sto Traps Triggered . | . . . . . Indirectly . | . . . . . Trap Hack Attempts . | . . . . . Triggered . | . . . . . Disarmed 4 | . 4 . . . Reprogrammed . | . . . . . Reused . | . . . . . Traps Extracted . | . . . . . Installed . | . . . . . Triggered . | . . . . . Machines | -11 -10 -9 -8 -8 ---------- Run | Yrd Mat Mat Mat Sto Machines Disabled 5 | . . 1 2 2 Max in Single Turn 2 | . . 1 2 1 Machines Repaired . | . . . . . Machines Dismantled . | . . . . . Machines Sabotaged . | . . . . . Overloaded Fab Kills . | . . . . . Hacking | -11 -10 -9 -8 -8 --------- Run | Yrd Mat Mat Mat Sto Machines Accessed 13 | . 4 4 3 2 Terminals 12 | . 4 3 3 2 Fabricators . | . . . . . Repair Stations . | . . . . . Recycling Units 1 | . . 1 . . Scanalyzers . | . . . . . Garrison Access . | . . . . . Total Hacks 36 | . 12 11 6 7 Successful 17 | . 5 5 5 2 Failed 19 | . 7 6 1 5 Catastrophic 3 | . . 2 . 1 Database Lockouts . | . . . . . Manual . | . . . . . Terminals 34 | . 12 9 6 7 Fabricators . | . . . . . Repair Stations . | . . . . . Recycling Units 2 | . . 2 . . Scanalyzers . | . . . . . Garrison Access . | . . . . . Terminal Hacks 16 | . 5 4 5 2 Record 1 | . . . 1 . Robot Analysis 1 | . 1 . . . Prototype ID Bank 1 | . . . 1 . Open Door 2 | . . . . 2 Emergency Access Points 2 | . . . 2 . Alert Level 1 | . 1 . . . Locate Traps 1 | . . 1 . . Disarm Traps 1 | . 1 . . . Dispatch Records 1 | . . 1 . . Hauler Manifests 1 | . . 1 . . Registered Components 1 | . . . 1 . Zone Layout 3 | . 2 1 . . Fabricator Hacks . | . . . . . Repair Station Hacks . | . . . . . Recycling Unit Hacks 1 | . . 1 . . Retrieve Components 1 | . . 1 . . Scanalyzer . | . . . . . Garrison Access Hacks . | . . . . . Unauthorized Hacks . | . . . . . Terminals . | . . . . . Fabricators . | . . . . . Repair Stations . | . . . . . Recycling Units . | . . . . . Scanalyzers . | . . . . . Garrison Access . | . . . . . Data Cores Recovered 1 | . . . 1 . Used . | . . . . . Hacking Detections 9 | . 3 3 2 1 Full Trace Events 2 | . 1 . . 1 Feedback Events . | . . . . . Feedback Blocked . | . . . . . Robot Schematics Acquired . | . . . . . Robots Built . | . . . . . Authchips . | . . . . . Time . | . . . . . Total Robot Build Rating . | . . . . . Part Schematics Acquired . | . . . . . Parts Built . | . . . . . Authchips . | . . . . . Time . | . . . . . Total Part Build Rating . | . . . . . Parts Repaired . | . . . . . Time . | . . . . . Parts Recycled . | . . . . . Recycled Matter . | . . . . . Retrieved Matter . | . . . . . Retrieved Components 2 | . . 2 . . Parts Scanalyzed . | . . . . . Part Schematics Acquired . | . . . . . Parts Damaged . | . . . . . Bothacking | -11 -10 -9 -8 -8 ------------ Run | Yrd Mat Mat Mat Sto Used RIF Installer . | . . . . . Robots Hacked . | . . . . . Non-combat . | . . . . . Combat . | . . . . . Robot Hacks Applied . | . . . . . Relay Couplers Released . | . . . . . Fabnet Peak Effective % . | . . . . . Robots Rewired . | . . . . . Allies Hacked . | . . . . . Hacks Repelled . | . . . . . Allies | -11 -10 -9 -8 -8 -------- Run | Yrd Mat Mat Mat Sto Total Allies . | . . . . . Largest Group . | . . . . . Highest-Rated Group . | . . . . . Highest-Rated Ally . | . . . . . Total Orders . | . . . . . Ally Attacks . | . . . . . Total Damage . | . . . . . Kills . | . . . . . Allies Corrupted . | . . . . . Allies Melted . | . . . . . Intel | -11 -10 -9 -8 -8 ------- Run | Yrd Mat Mat Mat Sto Robot Analysis Total 1 | . 1 . . . Derelict Logs Recovered . | . . . . . Drone Launches . | . . . . . Drone Recoveries . | . . . . . Exploration | -11 -10 -9 -8 -8 ------------- Run | Yrd Mat Mat Mat Sto Turns Passed 1231 | 63 327 267 345 229 Spaces Moved 861 | 42 195 177 149 298 Core 24 | 11 . . 7 6 Treads . | . . . . . Legs 537 | 31 194 177 135 . Wheels . | . . . . . Hover 292 | . . . . 292 Flight 8 | . 1 . 7 . Fastest Speed 50 | 50 120 120 100 50 Average Speed 112 | 125 126 120 176 63 Slowest Speed 360 | 200 210 120 360 200 Overloaded Moves . | . . . . . Propulsion Burnouts . | . . . . . Robots Hopped . | . . . . . Cave-ins Triggered . | . . . . . Exploration Rate (%) 29 | 4 43 23 15 60 Regions Visited 4 Branch Regions 1 Pre-discovered Areas . | . . . . . Known Exits Taken . | . . . . . Unknown Exits Taken 4 | 1 1 1 1 . Scrap Searched . | . . . . . Spaces Dug . | . . . . . Terrain Destroyed 171 | . . 57 80 34 Melee . | . . . . . Projectile 4 | . . . 3 1 AOE 167 | . . 57 77 33 Terrain Rammed . | . . . . . Walls Destroyed . | . . . . . Machines Disabled . | . . . . . Actions | -11 -10 -9 -8 -8 --------- Run | Yrd Mat Mat Mat Sto Total 1010 | 49 240 205 187 329 Wait 27 | . 20 4 3 . Move 857 | 41 194 176 148 298 Hop . | . . . . . Pick Up 17 | 2 2 5 6 2 Fast Attach 21 | 6 2 3 2 8 Attach 15 | . 1 4 5 5 Detach 4 | . 1 . . 3 Swap 2 | . . 1 . 1 Drop 7 | . 1 . . 6 Fire 56 | . 17 12 23 4 Melee . | . . . . . Ram 3 | . 1 . . 2 Kick 1 | . 1 . . . Crush . | . . . . . Escape Stasis . | . . . . . Rewire . | . . . . . Trap . | . . . . . Miscellaneous . | . . . . . Route ------- -11/Scrapyard -10/Materials -9/Materials -8/Materials -8/Storage History --------- Turn | Location | Event 2 | -11/Scrapyard | Met Revision 17 25 | -11/Scrapyard | Discovered new exit (range 15) 64 | -11/Scrapyard | Entered Materials 301 | -10/Materials | Discovered new exit (range 16) 307 | -10/Materials | Build established: Mutant 391 | -10/Materials | Entered another Materials area 391 | -9/Materials | Evolved 2 slots: Propulsion x2 598 | -9/Materials | Lost 4 parts (1p2n1w) 637 | -9/Materials | Discovered new exit (range 16) 658 | -9/Materials | Entered another Materials area 658 | -8/Materials | Evolved 2 slots: Utility x2 721 | -8/Materials | Lost 4 parts (2n2w) 966 | -8/Materials | Discovered new exit (range 13) 1002 | -8/Materials | Core integrity fell below 50% 1003 | -8/Materials | Entered Storage 1033 | -8/Storage | Lost 5 parts (1p2n1u1w) 1228 | -8/Storage | Core integrity fell below 20% 1232 | -8/Storage | Destroyed by Y-45 Defender with Heavy Assault Rifle Last Messages --------------- Shock Rifle destroyed. Lgt. Nuclear Core destroyed. System corrupted: Heat flow error (+264). Acquired Imp. Grenade Launcher. Connecting with Door Terminal... >>Open(Door) Sealed Heavy Doors opened. ALERT: Suspicious activity at Terminal S009. Dispatching Investigation squad. Acquired Prototype Ballistic Cannon. Identified Mni. Assault Cannon. K-01 Serf collects debris. Y-45 Defender destroyed. K-01 Serf collects debris. Airjet destroyed. Imp. Grenade Launcher destroyed. Critical hit (Burn: +37). System corrupted: Mni. Assault Cannon rejected. The unstable cave ceiling collapses. Acquired Mni. Assault Cannon. Map ----- +----------------------------------------------------+ | ????# #?????????? | | ???##+#####+## #?????????? | | ???# ## ##?????????? | | ???# ## #??????????? | | ???# ## #??????????? | | ???# ## #??????????? | | ???#+#####/#### #??????????? | | ???# #??# #######????? | | ?###+##+## #??# #????? | | ?# ## ####+##+## #????? | | ?# """ # ## # ####?? | | ?# """ + ## # #?? | | ?# """ # ## # ??? | | ?# ## ### """ # ???? | | ?# ## #?# """ # ????? | | ?######### ### """ # #????? | | ?????#### ######+## #????? | | ?##### r #????? | | ?# +!## # #????? | | ?###T#Y # ## ### | | ???## Y # + | | ????? !% #+## ### | | ??### g!*# # #????? | | ?## [=g[= # + #????? | | ?# g # #????? | | ?##@ "!]!" # #????? | | ??# "??""? # + +????? | | ??# ""????? # # #????? | | ??# "???????# # ##+#?? | | ??# "???????# + #?? | | ??# ???????# # ### | | ??###?????######## # | | ??????????# + / | | ??????????# # # | | ??????????# # ### | | ??????????# ?# | | ??????????######?# ######### | | ?????????????????#+#????#??# | | ????????????????? #????#!!" | | ????????????????? #????#!! | | ???????????????? #????#!!" | | ????????????????"" ????##?# | | ???????????????""" #???????? | | ???????????????""" #?####??? | | ?????????????? #?? ? | | ????????????????? ???? | | ?????????????????##?????? [ | | ??????????????????????????? | | ???????????????????????????? | | ???????????????????????????? | +----------------------------------------------------+ Best States ------------- Heat Dissipation 31 Energy Generation 14 Energy Capacity 250 Matter Stores 300 Matter Capacity 300 Sight Range 16 Terrain Scan Density 10 Additional Mass Support 9 Evasion (%) 55 Item Schematics ----------------- None Robot Schematics ------------------ None Fabricated ------------ Nothing Alien Tech Used ----------------- None Achievements -------------- Let's See Who's Tougher Challenges ------------ None Game ------ Seed RelayUtilityMace Manual? 0 Play Time 00:19:31 Cumulative 9.3 hours Start 2024.04.24 @ 21:42:01 End 2024.04.25 @ 05:17:50 Sessions 2 Manual Loads 0 Difficulty Rogue Special Mode None Game No. 9 Rogue 9 Adventurer 0 Explorer 0 Win Type - Total 0 Types 0/0/0/0/0/0/0/0/0 Lore% 14 Gallery% 16 Achievement% 17 Wizard Run 0 Options --------- Layout 1 ASCII 0 Keyboard 0 Movement Arrows Keybinds 0 Fullscreen 1 Font 24/Smallcaps Map View 50x35 Zoom Use 8% Tactical HUD 0 Map Filters NONE Filters NONE Steam 0 RUN: 03c8c9d6-d974-4226-8bc2-3c732ece6293